Cogmind - Beta 15 @@@ ROGUE MODE // 2025.07.28 @ 17:08:52 Player: bugsniper Result: Destroyed by Y-54 Guardian with Flak Gun Performance ------------- Evolutions (0) 0 Regions Visited (3) 600 Robots Destroyed (27) 135 Value Destroyed (459) 459 Prototype IDs (5) 100 Alien Tech Used (0) 0 Bonus (-19) -19 TOTAL SCORE: 1275 Bonus ------- Registered with UFD 300 Friendly Fire -319 Cogmind --------- Core Integrity 0/250 Matter 300/300 Energy 100/100 System Corruption 0% Temperature Cool (12) Movement Core (350) Ox6 Location -9/Scraptown Parts ------- > --- POWER (1) -------- (None) > --- PROPULSION (2) --- (None) > --- UTILITY (2) ------ Large Storage Unit Advanced Targeting Computer > --- WEAPON (2) ------- (None) > --- INVENTORY (15) --- Light Treads Light Treads Large Storage Unit High-capacity Matter Pod (200) High-powered Tractor Beam Subdweller Machine Gun Subdweller Machine Gun Grenade Launcher Grenade Launcher Grenade Launcher Mini Grenade Launcher Subdweller Shrapnel Launcher Junk Cannon (10) Peak State ------------ > --- POWER ------------ Nuclear Core > --- PROPULSION ------- Light Treads Light Treads > --- UTILITY ---------- Large Storage Unit Advanced Targeting Computer > --- WEAPON ----------- Junk Cannon > --- INVENTORY -------- Nuclear Core Light Treads Light Treads Large Storage Unit High-capacity Matter Pod High-powered Tractor Beam Subdweller Machine Gun Subdweller Machine Gun Grenade Launcher Grenade Launcher Grenade Launcher Mini Grenade Launcher Subdweller Shrapnel Launcher Junk Cannon [Rating: 24] Favorites ----------- Power Ion Engine Engine Ion Engine Power Core Nuclear Core Propulsion Light Treads Treads Light Treads Leg Aluminum Leg Wheel Compact Wheel Utility Large Storage Unit Device Tractor Beam Storage Large Storage Unit Processor Advanced Targeting Computer Protection Light Armor Plating Weapon Grenade Launcher Energy Gun Particle Gun Ballistic Gun Assault Rifle Launcher Grenade Launcher Special Weapon Junk Cannon Impact Weapon Hammer Build | -11 -10 -10 -9 ------- Run | Yrd Mat Sub Scr Slots Evolved . | . . . . Power . | . . . . Propulsion . | . . . . Utility . | . . . . Weapon . | . . . . Parts Attached 22 | . 11 2 9 Power 3 | . 1 . 2 Engine 1 | . 1 . . Core 2 | . . . 2 Reactor . | . . . . Propulsion 4 | . 4 . . Treads 2 | . 2 . . Leg . | . . . . Wheel 2 | . 2 . . Hover . | . . . . Flight . | . . . . Utility 6 | . 4 . 2 Device 1 | . 1 . . Storage 3 | . 2 . 1 Processor 1 | . . . 1 Hackware . | . . . . Protection 1 | . 1 . . Artifact . | . . . . Weapon 9 | . 2 2 5 Energy Gun 2 | . 2 . . Energy Cannon . | . . . . Ballistic Gun 2 | . . . 2 Ballistic Cannon . | . . . . Launcher 2 | . . 2 . Special Weapon 2 | . . . 2 Impact Weapon 1 | . . . 1 Slashing Weapon . | . . . . Piercing Weapon . | . . . . Special Melee Weapon . | . . . . Unidentified Prototypes 1 | . . . 1 Parts Lost 6 | . 1 . 5 Power 2 | . . . 2 Propulsion 3 | . 1 . 2 Utility . | . . . . Weapon 1 | . . . 1 Highest Loss Streak 5 | . 1 . 5 To Critical Strikes . | . . . . Average Backups 13 | . 12 14 13 Power 1 | . 1 1 . Propulsion 3 | . 5 3 2 Utility 3 | . 1 3 3 Weapon 5 | . 4 6 6 Tool/Special . | . . . . Unused Backups 31 | . 9 8 14 Power 4 | . 2 1 1 Propulsion 10 | . 6 . 4 Utility 6 | . 1 . 5 Weapon 11 | . . 7 4 Tool/Special . | . . . . Average Slot Usage (%) 96 | . 96 100 95 Engine 10 | . 14 14 8 Core 3 | . . . 5 Treads 26 | . 22 28 27 Wheel 1 | . 2 . . Storage 14 | . 14 14 14 Processor 3 | . . . 5 Protection 9 | . 9 14 8 Energy Gun 4 | . 12 . . Ballistic Gun 7 | . 15 . 3 Launcher 12 | . . 27 17 Special Weapon 2 | . . . 3 Peak Build Rating 24 | . 9 9 24 Average Rating 11 | . 8 8 13 On Entrance 7 | 6 6 9 9 Naked Turns . | . . . . Heaviest Build 93 | 13 93 34 41 Greatest Support 40 | 20 40 40 40 Greatest Overweight (x) 11 | . 5 . 11 Average Overweight (x) . | . . . . Largest Inventory Capacity 25 | . 25 15 15 Average Capacity 16 | . 18 15 15 Most Carried 16 | . 16 15 15 Average Carried 14 | . 12 14 14 Final Capacity 15 | 8 15 15 15 Final Carried 15 | 6 15 14 14 Class Distribution -------------------- 97% | Mutant Dominant Class ---------------- Mutant | -10/Materials Mutant | -10/Subcaves Mutant | -9/Scraptown Resources | -11 -10 -10 -9 ----------- Run | Yrd Mat Sub Scr Matter Collected 949 | 200 549 70 130 Remotely 217 | . 217 . . Salvage Created 976 | . 778 126 72 Parts 56 | . 44 8 4 Haulers Intercepted 2 | . 2 . . Recyclers Shooed 1 | . 1 . . Parts Field Recycled . | . . . . Retrieved Matter . | . . . . Parts Self-Destructed . | . . . . Prevented . | . . . . Kills | -11 -10 -10 -9 ------- Run | Yrd Mat Sub Scr Combat Hostiles Destroyed 14 | . 11 2 1 Guns 11 | . 11 . . AOE 2 | . . 2 . Classes Destroyed 10 | . 7 2 1 Worker 3 | . 3 . . Builder 1 | . 1 . . Tunneler 1 | . 1 . . Hauler 2 | . 2 . . Recycler 4 | . 4 . . Swarmer 5 | . 5 . . Grunt 6 | . 6 . . Subdweller 2 | . . 2 . Federalist 2 | . . 2 . Elite 1 | . . . 1 Best Kill Streak 4 | . 4 1 1 Combat Bots Only 3 | . 3 1 1 Max Kills in Single Turn 2 | . 2 2 1 Gunslinging . | . . . . Exploded 1 | . . 1 . Melee . | . . . . Uniques/NPCs Destroyed . | . . . . Combat | -11 -10 -10 -9 -------- Run | Yrd Mat Sub Scr Hostile Shots Fired 178 | . 44 . 134 Missed 42 | . 8 . 34 Hits 136 | . 36 . 100 Projectile 136 | . 36 . 100 Critical Strikes 2 | . . . 2 Damage Taken 1453 | . 498 21 934 Core 252 | . 63 . 189 Absorbed by Shields . | . . . . Core Remaining (%) 100 | 100 . . . Volleys Fired 71 | . 56 3 12 Largest 2 | . 2 2 1 Hottest 85 | . 85 60 . Shots Fired 128 | . 111 5 12 Gun 111 | . 111 . . Cannon . | . . . . Launcher 5 | . . 5 . Special 12 | . . . 12 Kinetic 62 | . 62 . . Thermal 49 | . 49 . . Explosive 5 | . . 5 . Electromagnetic . | . . . . Impact 12 | . . . 12 Robot Hit Streak 14 | . 11 . 14 Robot Miss Streak 3 | . 3 . . Penetration Max . | . . . . Secondary Targets 2 | . 2 . . Max Gunslinging Chain 1 | . 1 . . Shots Hit Robots 87 | . 76 . 11 Core Hits 44 | . 31 12 1 Critical Kills . | . . . . Critical Parts Destroyed 1 | . . . 1 Critical Strikes 1 | . . . 1 Smash 1 | . . . 1 Melee Attacks 1 | . . . 1 Impact 1 | . . . 1 Slashing . | . . . . Piercing . | . . . . Sneak Attacks . | . . . . Combat Hostiles . | . . . . Follow-up Attacks . | . . . . Damage Inflicted 2037 | . 1028 421 588 Guns 1006 | . 1006 . . Cannons . | . . . . Explosions 421 | . . 421 . Melee . | . . . . Ramming 24 | . 22 . 2 Kinetic 482 | . 482 . . Thermal 524 | . 524 . . Explosive 421 | . . 421 . Electromagnetic . | . . . . Impact 586 | . . . 586 Slashing . | . . . . Piercing . | . . . . Highest Corruption . | . . . . Average Corruption . | . . . . Corruption Purged . | . . . . Corruption Blocked . | . . . . Overload Shots . | . . . . Overflow Damage 60 | . . . 60 Projectiles 60 | . . . 60 Explosions . | . . . . Melee . | . . . . Knockbacks . | . . . . Impact . | . . . . Kinetic . | . . . . Secondary . | . . . . Self-Inflicted Damage 22 | . . 21 1 Shots 1 | . . 1 . Rammed 6 | . 5 . 1 Targets Rammed 6 | . 5 . 1 Kicked . | . . . . Crushed . | . . . . Highest Temperature 264 | . 264 . 2 Average Temperature 78 | . 78 . 2 Received Heat Transfer 378 | . 177 . 201 Effects 1 | . 1 . . Energy Bleed 1 | . 1 . . Siege Activations . | . . . . Martial Activations . | . . . . Shielding Activations . | . . . . Robots Disrupted . | . . . . Combat Hostiles . | . . . . Robots Corrupted 1 | . . . 1 Combat Hostiles 1 | . . . 1 Parts Fried . | . . . . Impact Corruptions 1 | . . . 1 Robots Melted . | . . . . Combat Hostiles . | . . . . Parts Melted 1 | . 1 . . Heat Transferred 1200 | . 1200 . . Parts Sabotaged . | . . . . Parts Stolen . | . . . . Parts Stripped . | . . . . Power Chain Reactions . | . . . . Alert | -11 -10 -10 -9 ------- Run | Yrd Mat Sub Scr Maximum Alert Level . | . . . . Low Security (%) 100 | . 100 . . Level 1 . | . . . . Level 2 . | . . . . Level 3 . | . . . . Level 4 . | . . . . Level 5 . | . . . . High Security . | . . . . Max Security . | . . . . Peak Influence 66 | . 66 . . Initial . | . . . . Average 18 | . 18 . . Influence Increases 361 | . 361 . . Destroy 0b10 Robot/C 220 | . 220 . . Destroy 0b10 Robot/NC 55 | . 55 . . Destroy Leader 44 | . 44 . . Successful Hack 41 | . 41 . . Destroy Structure 1 | . 1 . . Influence Decreases 361 | . 361 . . Time Decay 351 | . 351 . . Lost Part 10 | . 10 . . Squads Dispatched 1 | . 1 . . Investigation . | . . . . Extermination . | . . . . Reinforcement 1 | . 1 . . Assault . | . . . . Garrison . | . . . . Intercept . | . . . . Searches Triggered . | . . . . Construction Impeded . | . . . . Haulers Reinforced . | . . . . Active Scanning Responses . | . . . . Cargo Convoy Interrupts . | . . . . Stealth | -11 -10 -10 -9 --------- Run | Yrd Mat Sub Scr Distress Signals 1 | . 1 . . Communications Jammed . | . . . . Distress Signals . | . . . . Times Spotted 32 | . 24 4 4 Peak Tracking Total 9 | . 4 2 9 Tactical Retreats . | . . . . Traps | -11 -10 -10 -9 ------- Run | Yrd Mat Sub Scr Traps Triggered 2 | . 2 . . Indirectly . | . . . . Trap Hack Attempts . | . . . . Triggered . | . . . . Disarmed . | . . . . Reprogrammed . | . . . . Reused . | . . . . Traps Extracted . | . . . . Installed . | . . . . Triggered . | . . . . Machines | -11 -10 -10 -9 ---------- Run | Yrd Mat Sub Scr Machines Disabled 2 | . . . 2 Max in Single Turn 1 | . . . 1 Machines Repaired . | . . . . Machines Dismantled . | . . . . Machines Sabotaged . | . . . . Overloaded Fab Kills . | . . . . Hacking | -11 -10 -10 -9 --------- Run | Yrd Mat Sub Scr Machines Accessed 10 | . 6 . 4 Terminals 6 | . 6 . . Fabricators . | . . . . Repair Stations . | . . . . Recycling Units . | . . . . Scanalyzers . | . . . . Garrison Access . | . . . . Total Hacks 38 | . 11 . 27 Successful 35 | . 8 . 27 Failed 3 | . 3 . . Catastrophic 1 | . 1 . . Database Lockouts . | . . . . Manual 2 | . 2 . . Terminals 11 | . 11 . . Fabricators . | . . . . Repair Stations . | . . . . Recycling Units . | . . . . Scanalyzers . | . . . . Garrison Access . | . . . . Terminal Hacks 35 | . 8 . 27 Record 27 | . . . 27 Prototype ID Bank 2 | . 2 . . Emergency Access Points 2 | . 2 . . Locate Traps 2 | . 2 . . Zone Layout 2 | . 2 . . Fabricator Hacks . | . . . . Repair Station Hacks . | . . . . Recycling Unit Hacks . | . . . . Scanalyzer . | . . . . Garrison Access Hacks . | . . . . Unauthorized Hacks . | . . . . Terminals . | . . . . Fabricators . | . . . . Repair Stations . | . . . . Recycling Units . | . . . . Scanalyzers . | . . . . Garrison Access . | . . . . Data Cores Recovered . | . . . . Used . | . . . . Hacking Detections 4 | . 4 . . Full Trace Events . | . . . . Feedback Events . | . . . . Feedback Blocked . | . . . . Robot Schematics Acquired . | . . . . Robots Built . | . . . . Authchips . | . . . . Time . | . . . . Total Robot Build Rating . | . . . . Part Schematics Acquired . | . . . . Parts Built . | . . . . Authchips . | . . . . Time . | . . . . Total Part Build Rating . | . . . . Parts Repaired . | . . . . Time . | . . . . Parts Recycled . | . . . . Recycled Matter . | . . . . Retrieved Matter . | . . . . Retrieved Components . | . . . . Parts Scanalyzed . | . . . . Part Schematics Acquired . | . . . . Parts Damaged . | . . . . Bothacking | -11 -10 -10 -9 ------------ Run | Yrd Mat Sub Scr Used RIF Installer . | . . . . Robots Hacked . | . . . . Non-combat . | . . . . Combat . | . . . . Robot Hacks Applied . | . . . . Relay Couplers Released . | . . . . Fabnet Peak Effective % . | . . . . Robots Rewired . | . . . . Allies Hacked . | . . . . Hacks Repelled . | . . . . Allies | -11 -10 -10 -9 -------- Run | Yrd Mat Sub Scr Total Allies . | . . . . Largest Group . | . . . . Highest-Rated Group . | . . . . Highest-Rated Ally . | . . . . Total Orders . | . . . . Ally Attacks . | . . . . Total Damage . | . . . . Kills . | . . . . Allies Corrupted . | . . . . Allies Melted . | . . . . Intel | -11 -10 -10 -9 ------- Run | Yrd Mat Sub Scr Active Infowar (turns) . | . . . . Robot Analysis Total . | . . . . Derelict Logs Recovered 3 | . . . 3 Drone Launches . | . . . . Drone Recoveries . | . . . . Exploration | -11 -10 -10 -9 ------------- Run | Yrd Mat Sub Scr Turns Passed 4274 | . 1458 301 2515 Spaces Moved 2277 | 1 701 172 1403 Core 3 | . . . 3 Treads 2131 | . 559 172 1400 Legs 32 | 1 31 . . Wheels 111 | . 111 . . Hover . | . . . . Flight . | . . . . Fastest Speed 120 | 120 120 160 160 Average Speed 172 | 120 172 160 174 Slowest Speed 600 | 120 320 160 600 Overloaded Moves . | . . . . Propulsion Burnouts . | . . . . Robots Hopped . | . . . . Potential Cave-ins . | . . . . Cave-ins Triggered . | . . . . Exploration Rate (%) 45 | 2 92 10 77 Regions Visited 3 Branch Regions 2 Pre-discovered Areas 1 | . . . 1 Known Exits Taken . | . . . . Unknown Exits Taken 3 | 1 1 1 . Scrap Searched 10 | . . 5 5 Spaces Dug 11 | . . 11 . Terrain Destroyed 28 | . . 28 . Melee . | . . . . Projectile . | . . . . AOE 28 | . . 28 . Terrain Rammed . | . . . . Walls Destroyed . | . . . . Machines Disabled . | . . . . Actions | -11 -10 -10 -9 --------- Run | Yrd Mat Sub Scr Total 2493 | . 840 198 1455 Wait 33 | . 25 4 4 Move 2274 | . 700 171 1403 Hop . | . . . . Pick Up 45 | . 28 8 9 Fast Attach 9 | . 5 . 4 Attach 4 | . 1 . 3 Detach 2 | . . . 2 Swap 13 | . 8 2 3 Drop 35 | . 12 10 13 Fire 71 | . 56 3 12 Melee 1 | . . . 1 Ram 1 | . . . 1 Kick . | . . . . Crush 5 | . 5 . . Escape Stasis . | . . . . Rewire . | . . . . Trap . | . . . . Miscellaneous . | . . . . Route ------- -11/Scrapyard -10/Materials (discovered 5 exits: [*Mat x3] / [*Min] / [*Sub]) -10/Subcaves -9/Scraptown (discovered 1 exit: [*Fac]) History --------- Turn | Location | Event 1 | -11/Scrapyard | Discovered new exit (range 0) 1 | -11/Scrapyard | Entered Materials 2 | -10/Materials | Met a group of wandering Federalists 316 | -10/Materials | Build established: Mutant 355 | -10/Materials | Discovered new exit (range 13) 634 | -10/Materials | Discovered new exit (range 11) 818 | -10/Materials | Discovered new exit (range 15) 963 | -10/Materials | Discovered new exit (range 13) 1441 | -10/Materials | Discovered new exit (range 12) 1459 | -10/Materials | Entered Subcaves 1460 | -10/Subcaves | Continued accompanying wandering Federalists (5) 1460 | -10/Subcaves | Approached by a straggling Scientist 1485 | -10/Subcaves | Disturbed a concealed Subdweller 1731 | -10/Subcaves | Wandering Federalist uncovered a shortcut to Scraptown 1760 | -10/Subcaves | Entered Scraptown 2037 | -9/Scraptown | Heard Great Nut preacher, LISTEN AND RECITE! 2151 | -9/Scraptown | Discovered new exit (range 7) 2336 | -9/Scraptown | Scanned Subdweller tech in exchange for log data 2340 | -9/Scraptown | Learned location of 1 exit from Factory 2341 | -9/Scraptown | Learned location of Warlord (-4) 2343 | -9/Scraptown | Learned Research terminal intel 2388 | -9/Scraptown | Visited Red Mages 2458 | -9/Scraptown | Visited Awakened 2509 | -9/Scraptown | Visited SPCMW 3027 | -9/Scraptown | Visited Cave Peace 3093 | -9/Scraptown | Visited Cyclists 3160 | -9/Scraptown | Visited The Evicted 3190 | -9/Scraptown | Visited Supply Room 3390 | -9/Scraptown | Visited UFD Registry 3390 | -9/Scraptown | Registered with UFD as "Matterstep" 3450 | -9/Scraptown | Entered Cyclist Reading Room 3525 | -9/Scraptown | Visited Chapter 10 3571 | -9/Scraptown | Visited Science Testing Area 3606 | -9/Scraptown | Visited Junk Cannon Lab 3620 | -9/Scraptown | Found Prototype Special Weapon 3620 | -9/Scraptown | Identified Junk Cannon 3727 | -9/Scraptown | Delivered Scrap Shield to a Scientist 4078 | -9/Scraptown | Attacked by Scraptown defenders 4103 | -9/Scraptown | Found Junk Cannon 4198 | -9/Scraptown | Visited Observation Area 4256 | -9/Scraptown | Core integrity fell below 50% 4273 | -9/Scraptown | Core integrity fell below 20% 4275 | -9/Scraptown | Destroyed by Y-54 Guardian with Flak Gun Last Messages --------------- 04169_ Junk Cannon collects and crushes Corrupted Scrap Suit (+5 shots). 04169_ Acquired 51 matter. 04170_ ANNOUNCEMENT: Triborg tracking relay activated. Stay clear or you only have yourself to blame! 04237_ 0bJail breached. 04244_ Slug penetrates 0bJail. 04251_ Nuclear Core destroyed. 04254_ Siege Slug penetrates Machine. 04254_ Machine disabled. 04254_ Nuclear Core destroyed. 04254_ Lgt. Treads destroyed. 04256_ Slug penetrates 0bJail. 04258_ Lgt. Treads destroyed. 04262_ Slug penetrates 0bJail. 04269_ Junk Cannon destroyed. 04270_ Critical hit (Burn: +37). 04271_ Slammed into G-47 Trooper. 04274_ Slug penetrates 0bJail. Map ----- +----------------------------------------------------+ | ??????????????????????????????????????????????? | | ??????????????????????????????????????????????? | | ??????????????????????????????????????????????? | | ??????????????????????????????????????????????? | | ?????????? ????????????????????????????????? | | ????????" ????????????????????????????????? | | ????????" "???????????????????????????????? | | ????????" "???????????????????????????????? | | ????????" "???????????????????????????????? | | ??????#"" "#??????????????????????????????? | | ??????#"" "#??????????????????????????????? | | ?????? ??????????????????????????????? | | ?????? "#??????????????????????????????? | | ??????#"" "#??????????????????????????????? | | ??????#"" "#??????????????????????????????? | | ??????#"" "#??????????????????????????????? | | ??????#"" "#??????????????????????????????? | | ??????#"" "#??????????????????????????????? | | #######"" "##############?????????????????? | | """"""""" "## """""""""#?????????????????? | | """"""""" "#?????????????????? | | "## """""" "#?????????????????? | | "## " " "#?????????????????? | | "## " " "#?????????????????? | | ## " h"%"#?????????????????? | | # """""@g #?????????????????? | | """""*"""""" "" Y%"#?????????????????? | | #####%###### ## """"""""""#?????????????????? | | =[ # ##############?????????????????? | | # #??????????????????????????????? | | # #??????????????????????????????? | | """ "### ## #??????????????????????????????? | | " "# # #??????????????????????????????? | | "" "# # ############???????????????????? | | "" "# # #???????????????????? | | "" "# # ##???????????????????? | | "" "# ] # #???????????????????? | | """"""# # #???????????????????? | | """"""# # #???????????????????? | | ############ ############???????????????????? | | ############ #####??????????????????????????? | | "##"""##" "# """"#??????????????????????????? | | "##"" ##" # "" "#??????????????????????????? | | "#??????????????????????????? | | " "#??????????????????????????? | | """"#??????????????????????????? | | "## ##"" ## ######??????????????????????????? | | "##"""##"""####???????????????????????????????? | | ############??????????????????????????????????? | | ??????????????????????????????????????????????? | +----------------------------------------------------+ Best States ------------- Heat Dissipation 25 Energy Generation 14 Energy Capacity 250 Matter Stores 300 Matter Capacity 300 Sight Range 16 Terrain Scan Density 10 Armor Coverage 150 Evasion (%) 55 Targeting Accuracy 8 Recoil Reduction 2 Item Schematics ----------------- None Robot Schematics ------------------ None Fabricated ------------ Nothing Repaired ---------- Nothing Alien Tech Used ----------------- None Achievements -------------- None Challenges ------------ None Game ------ Seed SmallModifiedFragment Manual? 0 Play Time 00:34:15 Cumulative 425.3 hours Start 2025.07.28 @ 16:36:36 End 2025.07.28 @ 17:08:52 Sessions 1 Manual Loads 0 Difficulty Rogue Special Mode None Game No. 241 Rogue 241 Adventurer 0 Explorer 0 Win Type - Total 11 Types 10/0/1/0/0/0/0/0/0/0 Lore% 62 Gallery% 65 Achievement% 53 Wizard Run 0 Options --------- Layout 1 ASCII 0 Keyboard 0 Movement Numpad Keybinds 0 Fullscreen 1 Font 24/Smallcaps Map View 50x35 Zoom Use 0% Tactical HUD 1 Map Filters NONE Filters NONE Steam 1 RUN: 74a3fa37-1ecb-4d6a-8eec-c5da8e5a8ff0